[Event "Polish University-ch Open 2024"]
[Site "Lublin"]
[Date "2024.02.23"]
[Round "1.18"]
[White "Zahorski, Bartosz"]
[Black "Redzisz, Michal"]
[Result "0-1"]
[ECO "B13"]
[WhiteElo "1396"]
[BlackElo "2229"]
[Annotator "TA"]
[PlyCount "92"]
[EventDate "2024.02.22"]
[EventType "swiss"]
[EventCountry "POL"]
[SourceTitle "playchess.com"]
[Source "ChessBase"]
[SourceQuality "1"]
[TimeControl "600+3"]

{[%evp 9,92,0,27,32,103,17,10,14,13,9,14,11,16,13,22,15,25,-25,-30,-14,-21,-13,-20,-27,-34,-51,-37,-38,-44,-43,-36,-32,-34,-43,0,0,-1,-91,-104,-106,-100,-101,-77,-69,-80,-61,-64,-66,-77,-97,-72,-70,-50,-50,-50,-50,-66,-50,0,0,0,0,0,-10,0,-135,-130,-120,-30,-26,0,-168,-130,-135,0,0,553,0,0,-651,-615,-507,-504,-29992,-29993]} 1. e4 {[%emt 0:00:02]} c6 {[%emt 0:00:01]} 2. d4 {[%emt 0:00:04]} d5 {[%emt 0:00:01]} 3. exd5 {[%emt 0:00:01]} cxd5 {[%emt 0:00:01]} 4. Nf3 {[%emt 0:00:01]} Nc6 {[%emt 0:00:01]} 5. Bd3 {[%emt 0:00:03]} g6 {[%emt 0:00:00]} 6. O-O {[%emt 0:00:04]} Bf5 {[%emt 0:00:01]} (6... Nf6 $14) 7. Re1 {[%emt 0:00:16]} (7. Bxf5 $16 {Black must now prevent Bd3.} gxf5 8. Bg5) 7... Bxd3 $11 {[%emt 0:00:36]} 8. Qxd3 {[%emt 0:00:02] The position is equal.} Bg7 {[%emt 0:00:01]} 9. c3 {[%emt 0:00:01]} Nf6 {[%emt 0:00:01]} 10. Bf4 {[%emt 0:00:20]} O-O {[%emt 0:00:05]} 11. Nbd2 {[%emt 0:09:42]} Rc8 {[%emt 0:00:28]} 12. Ne5 {[%emt 0:00:00]} Nh5 {[%emt 0:00:26]} 13. Bg3 {[%emt 0:00:00]} (13. Bg5 $142 f6 14. Nxc6 bxc6 15. Be3) 13... Nxg3 {[%emt 0:00:17]} 14. hxg3 {[%emt 0:00:00]} Nxe5 {[%emt 0:00:19]} 15. dxe5 {[%emt 0:00:00]} e6 {[%emt 0:00:00]} 16. Nf3 {[%emt 0:00:00]} Rc4 {[%emt 0:00:56]} 17. Rad1 {[%emt 0:00:00][%cal Od3c4]} Qc7 {[%emt 0:00:19]} 18. a3 {[%emt 0:00:00]} Rb8 {[%emt 0:00:39]} 19. Qe3 {[%emt 0:00:00]} b5 {[%emt 0:00:04]} 20. Nd4 {[%emt 0:00:00]} a5 {[%emt 0:00:08]} 21. Rd3 {[%emt 0:00:00]} b4 {[%emt 0:02:52]} 22. cxb4 {[%emt 0:00:00]} axb4 {[%emt 0:00:01]} 23. a4 {[%emt 0:00:00] [#]} (23. b3 $1 $11 {keeps the balance.} Rc3 24. a4) 23... b3 $1 $17 {[%emt 0:01:36]} 24. Rxb3 {[%emt 0:00:00]} Rxb3 {[%emt 0:00:08]} (24... Rxa4 25. Rxb8+ Qxb8 26. b3 $15) 25. Nxb3 {[%emt 0:00:00]} Rxa4 {[%emt 0:00:03] Hoping for ...Re4.} 26. Rc1 {[%emt 0:00:00]} Rc4 {[%emt 0:00:14]} (26... Qxe5 27. Rc8+ Bf8 28. Qxe5 Rc4 29. Ra8 (29. Rxc4 dxc4 30. Na5 h5 $18) 29... d4 30. Qd6 (30. Nxd4 Rc1+ 31. Kh2 Ra1 32. Rxa1 h5 33. Ra8 h4 34. gxh4 g5 35. Qxg5+ Kh7 36. Rxf8 e5 37. Rxf7+ Kh8 38. Qg7#) (30. Rxf8+ Kxf8 31. Nxd4 Kg8 $18) (30. Qb8 Kg7 31. Qxf8+ Kf6 32. Qd8+ Kg7 33. Qh8+ Kh6 34. Ra7 Kg5 35. Rxf7 Rc1+ 36. Nxc1 h5 37. Qf6+ Kh6 38. Qf4+ g5 39. Qf6#) 30... Kg7 31. Rxf8 (31. Qxf8+ Kf6 32. Qd8+ Kg7 33. Qh8+ Kh6 34. Ra7 Rc8 35. Qxc8 Kh5 36. Rxf7 h6 37. Qxe6 g5 38. Rh7 g4 39. Qxh6#)) 27. Rxc4 {[%emt 0:00:48]} Qxc4 {[%emt 0:01:20][%mdl 4096] Endgame. KQB-KQN} (27... dxc4 28. Nd2 $11) 28. f4 {[%emt 0:00:00]} Bf8 {[%emt 0:00:05][%cal Od5d4] ...d4! is the strong threat.} 29. Qc3 {[%emt 0:00:00]} Qb5 {[%emt 0:00:33]} 30. Kh2 {[%emt 0:00:00]} h5 {[%emt 0:00:07]} 31. Nd4 {[%emt 0:00:00]} Qb6 {[%emt 0:00:05]} 32. b3 {[%emt 0:00:00]} Bc5 {[%emt 0:00:01]} 33. Nf3 {[%emt 0:00:00]} d4 {[%emt 0:00:08]} (33... Qb5 $15) 34. Qd3 $11 {[%emt 0:00:00]} Qb4 {[%emt 0:00:03]} 35. Ng5 {[%emt 0:00:00]} Kg7 {[%emt 0:00:03]} 36. Ne4 {[%emt 0:00:00]} Bb6 {[%emt 0:00:02]} 37. Kh1 {[%emt 0:00:08]} (37. Nd6 $11 {remains equal.}) 37... Qe1+ $17 38. Kh2 {[%emt 0:00:01] [#]} h4 {[%emt 0:00:02] Black is more active.} ({Black should play} 38... Qe3 $1 $17 {[%cal Re3d3]} 39. Qxe3 dxe3) 39. g4 $11 {[%emt 0:00:14]} Qb4 {[%emt 0:00:03]} 40. f5 $2 {[%emt 0:00:05]} exf5 {[%emt 0:00:02]} (40... gxf5 41. gxf5 Qa5 (41... exf5 42. Nd6 $11) 42. fxe6 $17 (42. f6+ $2 Kh6 $19)) 41. gxf5 {[%emt 0:00:01]} gxf5 {[%emt 0:00:04]} (41... Bc7 $17 42. Kh3 Bxe5 (42... gxf5 43. Nf2 $15) 43. Kxh4 Qe1+ (43... gxf5 44. Nf2 $15) 44. Kg4 Qc1) 42. Nd6 {[%emt 0:00:04]} Bc7 $2 {[%emt 0:00:06][%mdl 8192]} (42... Qe1 $11 {and Black is okay.} 43. Nxf5+ Kf8) 43. Nxf5+ $2 {[%emt 0:00:03]} ({And not} 43. Ne8+ Kf8 44. Nxc7 Qc5 $11) (43. Qxf5 $18 Bxd6 (43... Qxb3 44. Qf6+ Kg8 45. Nf5 $18) 44. Qf6+ Kg8 45. exd6 (45. Qxd6 $2 {is the wrong capture.} Qxd6 46. exd6 Kf8 $19)) 43... Kf8 {[%emt 0:00:02]} 44. Nxd4 $2 {[%emt 0:00:06][%mdl 8192]} (44. Qe4 $11) 44... Bxe5+ $19 {[%emt 0:00:01]} 45. Kh3 {[%emt 0:00:06]} Bxd4 {[%emt 0:00:00]} 46. Kxh4 {[%emt 0:00:02]} (46. Qc2 $19 Be5 47. Qd3) 46... Bf2+ {[%emt 0:00:08] Weighted Error Value: White=0.72/Black=0.30.  Loses game:     	White=2     	Black=1      Missed win:     	White=1     	---        Mistake:       	White=4     	Black=4      Inaccurate:     	---       	Black=2      OK:         	White=18    	Black=14     Best:        	White=3     	Black=2      Brilliant:      	---       	Black=1} 0-1

[Event "Polish University-ch Open 2024"]
[Site "Lublin"]
[Date "2024.02.23"]
[Round "2.1"]
[White "Sygulski, Piotr"]
[Black "Kosakowski, Jakub"]
[Result "0-1"]
[ECO "E16"]
[WhiteElo "2035"]
[BlackElo "2482"]
[Annotator "TA"]
[PlyCount "84"]
[EventDate "2024.02.22"]
[EventType "swiss"]
[EventCountry "POL"]
[SourceTitle "playchess.com"]
[Source "ChessBase"]
[SourceQuality "1"]
[TimeControl "600+3"]

{[%evp 14,83,10,-4,0,1,14,4,20,-31,16,-45,0,-69,13,31,22,27,24,-21,-22,-30,-22,-37,-19,-27,-37,-66,-62,-130,-66,-83,-69,-81,-70,-79,-62,-242,-245,-251,-244,-247,-171,-187,-182,-181,-190,-193,-157,-174,-155,-185,-211,-298,-262,-595,-534,-580,-546,-496,-230,-29990,-27,-29991,-29992,-29992,-29993,-29993,-29994,-29995,-29996,-29999]} 1. d4 {[%emt 0:00:02]} d5 {[%emt 0:00:04]} 2. c4 {[%emt 0:00:01]} e6 {[%emt 0:00:02]} 3. g3 {[%emt 0:00:01]} Nf6 {[%emt 0:00:05]} 4. Bg2 {[%emt 0:00:02]} Bb4+ {[%emt 0:00:05]} 5. Nd2 {[%emt 0:00:04]} O-O {[%emt 0:00:08]} 6. Ngf3 {[%emt 0:00:01]} b6 {[%emt 0:00:07]} 7. O-O {[%emt 0:00:05]} Bb7 {[%emt 0:00:02]} 8. Qc2 {[%emt 0:00:12]} Re8 {[%emt 0:00:09]} 9. b3 {[%emt 0:00:11]} c5 {[%emt 0:00:49]} 10. Bb2 {[%emt 0:00:55]} Nc6 {[%emt 0:00:09] The position is equal.} 11. Rfd1 {[%emt 0:01:04]} (11. dxc5 $11 Bxc5 12. a3) 11... Qe7 {[%emt 0:00:30]} (11... cxd4 $15 {should be considered.} 12. Rac1 e5 13. cxd5 Nxd5 (13... Qxd5 14. Ng5 $16)) 12. Rac1 {[%emt 0:00:30]} ({White should play} 12. cxd5 $11 exd5 13. e3) 12... Rac8 {[%emt 0:00:12]} 13. Qb1 {[%emt 0:00:13]} (13. dxc5 $11 Bxc5 14. e3) 13... Bxd2 {[%emt 0:00:32]} (13... Nxd4 $15 14. Nxd4 cxd4 15. Bxd4 e5) 14. Rxd2 $11 {[%emt 0:00:29]} Nxd4 {[%emt 0:00:41]} 15. Nxd4 {[%emt 0:00:10]} cxd4 {[%emt 0:00:02]} 16. Rxd4 {[%emt 0:00:45]} e5 {[%emt 0:00:18]} 17. Rdd1 {[%emt 0:00:32]} d4 {[%emt 0:00:04]} 18. Bxb7 {[%emt 0:00:33]} Qxb7 {[%emt 0:00:02]} 19. Qf5 {[%emt 0:00:25]} Re6 {[%emt 0:00:34]} 20. Rd3 {[%emt 0:00:47]} Ne4 {[%emt 0:00:53] [#] ...Rf6 is the strong threat.} 21. Qh3 {[%emt 0:04:04]} (21. f4 $15) 21... Qe7 {[%emt 0:01:07]} (21... b5 $17 {aiming for ...bxc4.} 22. cxb5 Rxc1+ 23. Bxc1 Qxb5) 22. Qg2 {[%emt 0:00:00]} Nc5 {[%emt 0:00:17][%cal Be4c5,Bc5a4,Ba4c3][%mdl 32] Black is more active.} 23. Rdd1 {[%emt 0:00:00]} h5 {[%emt 0:00:13]} 24. Ba3 {[%emt 0:00:00]} h4 {[%emt 0:00:05]} 25. b4 $2 {[%emt 0:00:00]} (25. Bxc5 $15 bxc5 26. Qe4) 25... Na4 $19 {[%emt 0:00:06]} 26. c5 {[%emt 0:00:00]} Nc3 {[%emt 0:00:07]} 27. Rd2 {[%emt 0:00:00]} bxc5 {[%emt 0:00:03]} 28. bxc5 {[%emt 0:00:00]} Ra6 {[%emt 0:00:34]} 29. Bb2 {[%emt 0:00:00]} Nxa2 {[%emt 0:00:08]} 30. Ra1 {[%emt 0:00:00]} Nb4 {[%emt 0:00:07]} ({Resist} 30... Rxc5 31. e3 $17) 31. Rxa6 {[%emt 0:00:13]} Nxa6 {[%emt 0:00:02]} 32. Ba3 {[%emt 0:00:01]} Qe6 {[%emt 0:00:22]} 33. Rb2 {[%emt 0:00:08]} (33. Qe4 $142) 33... h3 {[%emt 0:00:13]} 34. Qb7 {[%emt 0:00:06]} (34. Qe4) 34... Nxc5 {[%emt 0:00:07]} 35. Bxc5 {[%emt 0:00:03]} Rxc5 {[%emt 0:00:02][%cal Rc5c1][%mdl 4096] Endgame. KQR-KQR} 36. f3 {[%emt 0:00:07]} Qc8 {[%emt 0:01:35]} (36... f5 $142 {( -> ...Rc1+)} 37. Rb1 Rc2) 37. Qxa7 $2 {[%emt 0:00:03]} (37. Qe7 $19) 37... Rc1+ {[%emt 0:00:07]} 38. Kf2 {[%emt 0:00:01] [#] Rb8 would now be deadly.} Qc3 $1 {[%emt 0:00:02][%csl Gd4][%cal Rc3e3] Black mates.} 39. Qa8+ {[%emt 0:00:02]} Kh7 {[%emt 0:00:02][%csl Gc1][%cal Rc3e1]} 40. Qe4+ {[%emt 0:00:02]} g6 {[%emt 0:00:01][%csl Gc1][%cal Rc3e1]} 41. Qh4+ {[%emt 0:00:10]} Kg7 {[%emt 0:00:02][%csl Gc1][%cal Rc3e1]} 42. Qe4 {[%emt 0:00:01]} Qe1# {[%emt 0:00:02] Weighted Error Value: White=0.54/Black=0.26 (precise) .  Loses game:     	White=2     	---        Mistake:       	White=7     	Black=4      Inaccurate:     	White=2     	Black=2      OK:         	White=6     	Black=9      Best:        	---       	Black=3} 0-1

[Event "Polish University-ch Open 2024"]
[Site "Lublin"]
[Date "2024.02.23"]
[Round "2.2"]
[White "Janik, Igor"]
[Black "Strzalkowski, Damian"]
[Result "1-0"]
[ECO "B40"]
[WhiteElo "2499"]
[BlackElo "1672"]
[Annotator "TA"]
[PlyCount "89"]
[EventDate "2024.02.22"]
[EventType "swiss"]
[EventCountry "POL"]
[SourceTitle "playchess.com"]
[Source "ChessBase"]
[SourceQuality "1"]
[TimeControl "600+3"]

{[%evp 9,89,52,64,51,43,57,74,66,174,183,225,211,366,384,415,415,427,448,486,485,621,634,621,545,687,622,707,723,998,714,683,507,512,473,1783,720,6145,6133,5243,530,507,517,489,398,369,285,285,292,322,316,329,306,348,316,354,346,488,358,425,421,514,501,558,549,519,428,437,445,811,553,792,630,622,577,639,547,532,450,629,527,702,694]} 1. e4 {[%emt 0:00:04]} c5 {[%emt 0:00:01]} 2. Nf3 {[%emt 0:00:02]} e6 {[%emt 0:00:01]} 3. g3 {[%emt 0:00:01]} Nc6 {[%emt 0:00:03]} 4. Bg2 {[%emt 0:00:04]} a6 {[%emt 0:10:10]} 5. O-O {[%emt 0:00:02]} b5 {[%emt 0:00:00]} 6. c3 {[%emt 0:00:01]} Bb7 {[%emt 0:00:00]} 7. d4 {[%emt 0:00:01]} cxd4 {[%emt 0:00:00]} 8. cxd4 {[%emt 0:00:01] White is better.} d6 {[%emt 0:00:00]} ({Better is} 8... Na5 $14) 9. d5 $18 {[%emt 0:00:02]} exd5 {[%emt 0:00:00]} 10. exd5 {[%emt 0:00:01]} Nce7 {[%emt 0:00:00]} (10... Ne5 {keeps fighting.} 11. Re1 Be7 12. Nxe5 dxe5 13. Rxe5 Kf8) 11. Re1 {[%emt 0:00:02]} Nf6 {[%emt 0:00:00]} 12. Bg5 {[%emt 0:00:12]} Qb6 {[%emt 0:00:00]} 13. Bxf6 {[%emt 0:00:07]} gxf6 {[%emt 0:00:00][%cal Bg7f6,Bf6f5,Bf5f4][%mdl 32]} 14. Nd4 {[%emt 0:00:06]} O-O-O {[%emt 0:00:00]} 15. Nc3 {[%emt 0:00:02]} f5 {[%emt 0:00:00]} 16. Qd3 {[%emt 0:00:08][%cal Oa2a4]} f4 {[%emt 0:00:00]} 17. Nc6 {[%emt 0:00:06]} (17. gxf4 Rg8 $16) 17... Bxc6 {[%emt 0:00:00]} 18. dxc6 {[%emt 0:00:03][%cal Oe1e7] [#] Hoping for Rxe7!} fxg3 {[%emt 0:00:00] Black is weak on the light squares} 19. hxg3 {[%emt 0:00:03][%cal Oe1e7] Threatens to win with Rxe7!} d5 {[%emt 0:00:00]} 20. c7 {[%emt 0:00:11]} Kxc7 {[%emt 0:00:00]} 21. Qf3 {[%emt 0:00:17][%cal Oe1e7] And now Rxe7+! would win.} (21. Nxd5+ Nxd5 22. Bxd5 Bc5 $16) 21... h5 {[%emt 0:00:00]} (21... Kb8 $142 22. Qf4+ (22. Qxf7 Nc8 $18) 22... Qc7) 22. Qxf7 {[%emt 0:00:08]} (22. Rxe7+ $142 Bxe7 23. Nxd5+ (23. Qxf7 Qd4 $18) 23... Rxd5 24. Qxd5) 22... h4 {[%emt 0:00:00]} 23. Rxe7+ {[%emt 0:00:06]} Bxe7 {[%emt 0:00:00]} 24. Qxe7+ {[%emt 0:00:02]} (24. Nxd5+ $142 Rxd5 25. Rc1+ (25. Qxd5 Qc5 $18) (25. Bxd5 Qf6 $16) (25. Qxe7+ Kb8 $18) 25... Kd8 26. Qxd5+ (26. Bxd5 hxg3 27. Bg2 Qxf2+ 28. Qxf2 gxf2+ 29. Kxf2 Rh5 $11) 26... Ke8 27. Rc8+ Qd8 28. Rxd8+ Bxd8 29. Qe5+ Be7 30. Qxh8+ Bf8 31. Qxh4 (31. gxh4 Ke7 32. Qe5+ Kd8 33. Bh3 b4 34. Qf6+ Kc7 35. Qxf8 Kc6)) 24... Kb8 {[%emt 0:00:00]} 25. Nxd5 {[%emt 0:00:04]} Qd6 {[%emt 0:00:00]} 26. Qxd6+ {[%emt 0:00:14]} ({Weaker is} 26. gxh4 Qxe7 27. Nxe7 Rd2 $18) 26... Rxd6 {[%emt 0:01:06]} 27. Rd1 {[%emt 0:00:05] g4 is the strong threat.} hxg3 {[%emt 0:00:03]} 28. fxg3 {[%emt 0:00:02]} Rg8 {[%emt 0:00:00]} 29. Kf2 {[%emt 0:00:03]} Rdg6 {[%emt 0:00:00]} 30. Rd3 {[%emt 0:00:01]} Rf8+ {[%emt 0:00:00]} 31. Bf3 {[%emt 0:00:03]} Rh6 {[%emt 0:00:00]} 32. Nf4 {[%emt 0:00:02]} Rc8 {[%emt 0:00:00]} (32... Rf7 $142 33. Rd4 Rh2+ 34. Bg2 Ka7) 33. Rd2 {[%emt 0:00:02]} Rh2+ {[%emt 0:00:00]} 34. Bg2 {[%emt 0:00:01] White is clearly winning.} Rh6 {[%emt 0:00:00]} 35. g4 {[%emt 0:00:04]} Rc4 {[%emt 0:00:00]} 36. Kg3 {[%emt 0:00:02]} Rf6 {[%emt 0:00:00]} 37. Nd5 {[%emt 0:00:04]} Rg6 {[%emt 0:00:00]} 38. Bf3 {[%emt 0:00:01] [#] Black must now prevent Ne7.} Rg5 {[%emt 0:00:00]} (38... Re6 $142 39. b3 Rc5) 39. Ne3 {[%emt 0:00:03]} Rc7 {[%emt 0:00:00]} 40. Kf4 {[%emt 0:00:02]} Rg8 {[%emt 0:00:05] Against Rd8+} 41. Be4 {[%emt 0:00:06]} Rc1 {[%emt 0:00:21]} 42. Rf2 {[%emt 0:00:14]} Re1 {[%emt 0:00:06]} 43. Bf5 {[%emt 0:00:06]} Rd8 {[%emt 0:00:04]} 44. Ng2 {[%emt 0:00:08]} Rh1 {[%emt 0:00:08]} 45. g5 {[%emt 0:00:02] White took control after the opening.   Weighted Error Value: White=0.59/Black=0.40.  Mistake:       	White=1     	Black=5      Inaccurate:     	White=1     	Black=4      OK:         	White=14    	Black=6      Best:        	---       	Black=1} 1-0

[Event "Polish University-ch Open 2024"]
[Site "Lublin"]
[Date "2024.02.23"]
[Round "2.3"]
[White "Bien, Janusz"]
[Black "Szpar, Milosz"]
[Result "0-1"]
[ECO "B22"]
[WhiteElo "1905"]
[BlackElo "2495"]
[Annotator "RC"]
[PlyCount "109"]
[EventDate "2024.02.22"]
[EventType "swiss"]
[EventCountry "POL"]
[SourceTitle "playchess.com"]
[Source "ChessBase"]
[SourceQuality "1"]
[TimeControl "600+3"]

1. e4 {[%emt 0:00:01]} c5 {[%emt 0:00:02]} 2. d4 {[%emt 0:00:01]} cxd4 {[%emt 0:00:04]} 3. c3 {[%emt 0:00:00]} Nf6 {[%emt 0:00:10]} 4. e5 {[%emt 0:00:02]} Nd5 {[%emt 0:00:01]} 5. Nf3 {[%emt 0:00:02]} d6 {[%emt 0:00:03]} 6. Qxd4 {[%emt 0:00:02]} e6 {[%emt 0:00:23]} 7. Nbd2 {[%emt 0:00:01]} Nc6 {[%emt 0:00:32]} 8. Bb5 {[%emt 0:00:02]} Bd7 {[%emt 0:00:23]} 9. Bxc6 {[%emt 0:00:02]} Bxc6 {[%emt 0:00:02]} 10. Nc4 {[%emt 0:00:30]} dxe5 {[%emt 0:03:03]} 11. Nfxe5 {[%emt 0:00:51]} Qc7 {[%emt 0:00:45]} 12. O-O {[%emt 0:00:20]} Bb5 {[%emt 0:00:59]} 13. Re1 {[%emt 0:01:51]} Rd8 {[%emt 0:00:59]} 14. Qh4 {[%emt 0:04:14]} Be7 {[%emt 0:00:31]} 15. Bg5 {[%emt 0:00:30]} Bxg5 {[%emt 0:00:46]} 16. Qxg5 {[%emt 0:00:01]} O-O {[%emt 0:00:25]} 17. Na3 {[%emt 0:00:08]} Ba6 {[%emt 0:00:06]} 18. Nf3 {[%emt 0:00:26]} Nf4 {[%emt 0:00:12]} 19. Qg3 {[%emt 0:00:18]} Ne2+ {[%emt 0:00:18]} 20. Rxe2 {[%emt 0:00:02]} Qxg3 {[%emt 0:00:01]} 21. hxg3 {[%emt 0:00:03]} Bxe2 {[%emt 0:00:01]} 22. Nd4 {[%emt 0:00:04]} Ba6 {[%emt 0:00:02]} 23. b4 {[%emt 0:00:01]} Bd3 {[%emt 0:01:24]} 24. Rd1 {[%emt 0:00:05]} Bg6 {[%emt 0:00:00]} 25. Re1 {[%emt 0:00:01]} Rc8 {[%emt 0:00:00]} 26. Re3 {[%emt 0:00:04]} Rfd8 {[%emt 0:00:00]} 27. f4 {[%emt 0:00:08]} h5 {[%emt 0:00:00]} 28. Kf2 {[%emt 0:00:00]} Rd5 {[%emt 0:00:00]} 29. Kf3 {[%emt 0:00:33]} a5 {[%emt 0:00:00]} 30. b5 {[%emt 0:00:02]} a4 {[%emt 0:00:00]} 31. g4 {[%emt 0:00:15]} hxg4+ {[%emt 0:00:00]} 32. Kxg4 {[%emt 0:00:01]} Rdc5 {[%emt 0:00:00]} 33. c4 {[%emt 0:00:04]} Rxc4 {[%emt 0:00:00]} 34. Nxc4 {[%emt 0:00:09]} Rxc4 {[%emt 0:00:00]} 35. Nf3 {[%emt 0:00:15]} Rc2 {[%emt 0:00:03]} 36. Ra3 {[%emt 0:00:09]} Rc4 {[%emt 0:00:21]} 37. Ne5 {[%emt 0:00:00]} Rb4 {[%emt 0:00:01]} 38. Nxg6 {[%emt 0:00:02]} fxg6 {[%emt 0:00:01]} 39. Kg5 {[%emt 0:00:07]} Kf7 {[%emt 0:00:01]} 40. b6 {[%emt 0:00:03]} Rb2 {[%emt 0:00:08]} 41. g3 {[%emt 0:00:11]} Rb4 {[%emt 0:00:02]} 42. Kg4 {[%emt 0:00:22]} Kf6 {[%emt 0:00:02]} 43. Kf3 {[%emt 0:00:01]} g5 {[%emt 0:00:00]} 44. fxg5+ {[%emt 0:00:01]} Kxg5 {[%emt 0:00:01]} 45. Kf2 {[%emt 0:00:08]} Kf5 {[%emt 0:00:04]} 46. Rf3+ {[%emt 0:00:02]} Ke5 {[%emt 0:00:02]} 47. Rf7 {[%emt 0:00:05]} Rxb6 {[%emt 0:00:01]} 48. Rxg7 {[%emt 0:00:01]} a3 {[%emt 0:00:08]} 49. Rg5+ {[%emt 0:00:01]} Ke4 {[%emt 0:00:03]} 50. Ra5 {[%emt 0:00:03]} Rb2+ {[%emt 0:00:00]} 51. Kg1 {[%emt 0:00:00]} Rxa2 {[%emt 0:00:01]} 52. g4 {[%emt 0:00:06]} b6 {[%emt 0:00:09]} 53. Ra6 {[%emt 0:00:05]} b5 {[%emt 0:00:12]} 54. Rxe6+ {[%emt 0:00:01]} Kf4 {[%emt 0:00:01]} 55. Re2 {[%emt 0:00:11]} 0-1

[Event "Polish University-ch Open 2024"]
[Site "Lublin"]
[Date "2024.02.23"]
[Round "2.4"]
[White "Psyk, Radoslaw"]
[Black "Lukasiewicz, Aleksander"]
[Result "1-0"]
[ECO "C60"]
[WhiteElo "2461"]
[BlackElo "1937"]
[Annotator "TA"]
[PlyCount "77"]
[EventDate "2024.02.22"]
[EventType "swiss"]
[EventCountry "POL"]
[SourceTitle "playchess.com"]
[Source "ChessBase"]
[SourceQuality "1"]
[TimeControl "600+3"]

{[%evp 10,77,19,25,50,51,60,5,56,13,39,2,104,101,102,52,58,53,61,61,96,18,13,7,11,-15,118,134,126,75,76,72,75,82,76,77,119,118,114,63,300,308,348,345,390,411,387,208,393,261,284,286,286,277,332,341,343,326,404,393,353,395,443,443,595,593,588,577,686,680]} 1. e4 {[%emt 0:00:01]} e5 {[%emt 0:00:01]} 2. Nf3 {[%emt 0:00:03]} Nc6 {[%emt 0:00:01]} 3. Bb5 {[%emt 0:00:15]} g6 {[%emt 0:00:01]} 4. d4 {[%emt 0:00:42]} exd4 {[%emt 0:00:02]} 5. Bg5 {[%emt 0:00:17]} f6 {[%emt 0:00:01]} 6. Bf4 {[%emt 0:00:12]} Nge7 {[%emt 0:00:27]} 7. Nxd4 {[%emt 0:00:44]} Bg7 {[%emt 0:00:02]} 8. Bc4 {[%emt 0:00:12]} (8. Nc3 $14) 8... Na5 {[%emt 0:00:11]} (8... f5 $11 9. Nxc6 bxc6) 9. Bd3 {[%emt 0:01:20]} O-O {[%emt 0:00:16]} (9... f5 {is interesting.} 10. Nxf5 gxf5 11. Qh5+ Kf8) 10. Nc3 {[%emt 0:00:01]} Nac6 {[%emt 0:00:15]} (10... f5 $11 11. e5 d5) 11. Nxc6 $16 {[%emt 0:00:44]} bxc6 {[%emt 0:00:06]} 12. O-O {[%emt 0:00:13]} (12. Bc4+ $16 Kh8 13. Qe2) 12... d6 $14 {[%emt 0:01:02]} 13. Bc4+ {[%emt 0:00:10]} Kh8 {[%emt 0:00:01]} 14. Qd2 {[%emt 0:00:08] White has more active pieces. The black rooks are passive.} f5 {[%emt 0:00:12]} 15. Bg5 {[%emt 0:00:37]} ({Better is} 15. Rae1 $16) 15... fxe4 $11 {[%emt 0:01:28]} 16. Nxe4 {[%emt 0:00:01]} d5 $1 {[%emt 0:01:09]} 17. Rfe1 {[%emt 0:01:00][%cal Od2b4]} dxe4 {[%emt 0:00:02]} (17... h6 $11 18. Bh4 Bf5 (18... dxc4 19. Qxd8 Rxd8 20. Bxe7 $11) (18... g5 19. Nxg5 hxg5 20. Qxg5 $14) 19. Bxe7 Qxe7) 18. Qxd8 $16 {[%emt 0:00:02]} Rxd8 {[%emt 0:00:02]} 19. Bxe7 {[%emt 0:04:18]} (19. Rxe4 $142 $1 Bf5 20. Rxe7) 19... Rd2 {[%emt 0:00:28]} 20. Rad1 $36 {[%emt 0:00:00][%mdl 2048] White is in control.} Rxd1 {[%emt 0:00:09]} 21. Rxd1 {[%emt 0:00:00] [#] White threatens Rd8+ and mate.} Bg4 {[%emt 0:00:23]} 22. Rb1 {[%emt 0:00:00]} Re8 {[%emt 0:02:15]} 23. Bc5 {[%emt 0:00:00]} a5 {[%emt 0:00:04]} 24. a4 {[%emt 0:00:00]} ({White should try} 24. b4 $16 e3 25. f3 (25. bxa5 e2 $14) (25. Bxe3 a4 $16)) 24... Rb8 $2 {[%emt 0:00:54] [#] This costs Black the game.} (24... Rd8 $14) 25. h3 $18 {[%emt 0:00:00]} Bf5 {[%emt 0:01:02]} 26. g4 {[%emt 0:00:00]} Bd7 {[%emt 0:00:01]} 27. Rd1 {[%emt 0:00:00]} Be8 {[%emt 0:00:03]} 28. b3 {[%emt 0:00:00]} (28. b4 $142 axb4 29. a5) 28... g5 $2 {[%emt 0:00:09]} (28... h6 {is a better defense.} 29. Kf1 (29. Re1 g5 $16) 29... g5) 29. Be6 {[%emt 0:00:00]} Bg6 {[%emt 0:00:07]} 30. Be3 {[%emt 0:00:00]} h6 {[%emt 0:00:07]} 31. Rd7 {[%emt 0:00:00]} Re8 {[%emt 0:00:35]} 32. Bf7 {[%emt 0:00:00]} Bxf7 {[%emt 0:00:00]} 33. Rxf7 {[%emt 0:00:00][%mdl 4096] Endgame. KRB-KRB} Rc8 {[%emt 0:00:00]} 34. Re7 {[%emt 0:00:04]} Rd8 {[%emt 0:00:00]} 35. Rxe4 {[%emt 0:00:05]} ({Much less strong is} 35. Rxc7 Rd6 36. Kf1 Kg8 $18) 35... Rd1+ {[%emt 0:00:00]} 36. Kg2 {[%emt 0:00:01] White is clearly winning.} Ra1 {[%emt 0:00:00]} 37. Rc4 {[%emt 0:00:02]} Rd1 {[%emt 0:00:11]} 38. Rxc6 {[%emt 0:00:02]} Rd7 {[%emt 0:00:03]} 39. Rc5 {[%emt 0:00:03] Weighted Error Value: White=0.25 (precise) /Black=0.52.  Loses game:     	---       	Black=1      Mistake:       	White=6     	Black=4      Inaccurate:     	White=4     	Black=4      OK:         	White=14    	Black=8      Best:        	White=4     	Black=2      Strong:       	---       	Black=1} 1-0